[Event "*** Titled Tuesday Blitz"]
[Site "Chess.com"]
[Date "2020.12.29"]
[Round "10"]
[White "AdarshIsMe"]
[Black "Euge_chess"]
[Result "0-1"]
[WhiteElo "2181"]
[BlackElo "2092"]
[TimeControl "180+1"]
[EndTime "11:51:35 PST"]
[Termination "Euge_chess won by resignation"]

1. e4 {[%clk 0:03:00.9]} 1... e5 {[%clk 0:02:59.6]} 2. Nf3 {[%clk 0:03:00]} 2...
Nc6 {[%clk 0:03:00.1]} 3. Bc4 {[%clk 0:03:00.1]} 3... Nf6 {[%clk 0:03:00]} 4. d4
{[%clk 0:02:58.6]} 4... exd4 {[%clk 0:02:59.4]} 5. e5 {[%clk 0:02:57.6]} 5... d5
{[%clk 0:02:59.2]} 6. Bb5 {[%clk 0:02:57]} 6... Ne4 {[%clk 0:02:58.6]} 7. Nxd4
{[%clk 0:02:54.7]} 7... Bd7 {[%clk 0:02:58.9]} 8. Bxc6 {[%clk 0:02:54.6]} 8...
bxc6 {[%clk 0:02:59]} 9. O-O {[%clk 0:02:54.8]} 9... Bc5 {[%clk 0:02:59.4]} 10.
Be3 {[%clk 0:02:52.3]} 10... O-O {[%clk 0:02:52.9]} 11. f3 {[%clk 0:02:43.5]}
11... Ng5 {[%clk 0:02:52.1]} 12. f4 {[%clk 0:02:36.6]} 12... Ne4 {[%clk
0:02:51.5]} 13. Nd2 {[%clk 0:02:32.7]} 13... f6 {[%clk 0:02:44.2]} 14. Nxe4
{[%clk 0:02:22.8]} 14... dxe4 {[%clk 0:02:43.9]} 15. c3 {[%clk 0:02:11.5]} 15...
Qe7 {[%clk 0:02:27.7]} 16. Qc2 {[%clk 0:01:58.5]} 16... fxe5 {[%clk 0:02:23.8]}
17. Qxe4 {[%clk 0:01:55.4]} 17... exd4 {[%clk 0:02:16.8]} 18. Qxe7 {[%clk
0:01:51.2]} 18... Bxe7 {[%clk 0:02:16.4]} 19. Bxd4 {[%clk 0:01:50.9]} 19... Bf6
{[%clk 0:02:16]} 20. Rad1 {[%clk 0:01:41.4]} 20... Bxd4+ {[%clk 0:02:08.2]} 21.
Rxd4 {[%clk 0:01:40.3]} 21... Be6 {[%clk 0:02:08.4]} 22. Re1 {[%clk 0:01:39.9]}
22... Bxa2 {[%clk 0:02:04.1]} 23. Rd7 {[%clk 0:01:37.6]} 23... Rf7 {[%clk
0:01:57.9]} 24. Red1 {[%clk 0:01:30.6]} 24... Bd5 {[%clk 0:01:54.8]} 0-1

[Event "*** Titled Tuesday Blitz"]
[Site "Chess.com"]
[Date "2020.12.29"]
[Round "10"]
[White "Vyacheslav_N"]
[Black "Siniauski"]
[Result "0-1"]
[WhiteElo "2446"]
[BlackElo "2589"]
[TimeControl "180+1"]
[EndTime "11:51:49 PST"]
[Termination "Siniauski won by checkmate"]

1. e4 {[%clk 0:03:00.9]} 1... e6 {[%clk 0:03:00]} 2. d4 {[%clk 0:03:00.4]} 2...
d5 {[%clk 0:03:00.6]} 3. Nd2 {[%clk 0:03:00.1]} 3... c5 {[%clk 0:03:00.2]} 4.
exd5 {[%clk 0:02:58]} 4... Qxd5 {[%clk 0:03:01.1]} 5. Ngf3 {[%clk 0:02:57.9]}
5... cxd4 {[%clk 0:03:01.5]} 6. Bc4 {[%clk 0:02:58.1]} 6... Qd8 {[%clk
0:03:02.2]} 7. Nb3 {[%clk 0:02:54.6]} 7... Nc6 {[%clk 0:03:02.7]} 8. Nbxd4
{[%clk 0:02:54.7]} 8... Nxd4 {[%clk 0:03:03.1]} 9. Qxd4 {[%clk 0:02:55.2]} 9...
Qxd4 {[%clk 0:03:02.7]} 10. Nxd4 {[%clk 0:02:56.1]} 10... a6 {[%clk 0:03:03.6]}
11. a4 {[%clk 0:02:53.6]} 11... Be7 {[%clk 0:03:00.2]} 12. Be3 {[%clk 0:02:53]}
12... Nf6 {[%clk 0:03:00.2]} 13. c3 {[%clk 0:02:53]} 13... O-O {[%clk
0:03:00.1]} 14. O-O {[%clk 0:02:52.3]} 14... Rd8 {[%clk 0:02:59.5]} 15. a5
{[%clk 0:02:48.5]} 15... Bd7 {[%clk 0:02:59.1]} 16. f3 {[%clk 0:02:43]} 16...
Rac8 {[%clk 0:02:58.7]} 17. Be2 {[%clk 0:02:33.9]} 17... e5 {[%clk 0:02:52.6]}
18. Nc2 {[%clk 0:02:27.4]} 18... Bf5 {[%clk 0:02:51]} 19. Na3 {[%clk 0:02:20.7]}
19... Nd5 {[%clk 0:02:46.4]} 20. Bf2 {[%clk 0:02:16.9]} 20... Nf4 {[%clk
0:02:46.3]} 21. Rfe1 {[%clk 0:02:14.7]} 21... Rd2 {[%clk 0:02:39.8]} 22. Bf1
{[%clk 0:02:14.7]} 22... Rxf2 {[%clk 0:01:41.9]} 23. Kxf2 {[%clk 0:02:12.5]}
23... Bc5+ {[%clk 0:01:42.1]} 24. Kg3 {[%clk 0:02:10.5]} 24... Nh5+ {[%clk
0:01:38.1]} 25. Kh4 {[%clk 0:02:05.3]} 25... Be7+ {[%clk 0:01:35]} 26. Kxh5
{[%clk 0:02:01.8]} 26... g6+ {[%clk 0:01:34.7]} 27. Kh6 {[%clk 0:02:01.4]} 27...
f6 {[%clk 0:01:33.3]} 28. Bc4+ {[%clk 0:01:45.4]} 28... Rxc4 {[%clk 0:01:32.4]}
29. Nxc4 {[%clk 0:01:43.4]} 29... Bf8# {[%clk 0:01:32.3]} 0-1

[Event "*** Titled Tuesday Blitz"]
[Site "Chess.com"]
[Date "2020.12.29"]
[Round "10"]
[White "kai_nov"]
[Black "ulkaf961"]
[Result "1-0"]
[WhiteElo "2381"]
[BlackElo "2278"]
[TimeControl "180+1"]
[EndTime "11:51:52 PST"]
[Termination "kai_nov won by resignation"]

1. d4 {[%clk 0:03:00.9]} 1... d5 {[%clk 0:02:59.7]} 2. c4 {[%clk 0:03:00.5]}
2... e6 {[%clk 0:02:59.6]} 3. Nc3 {[%clk 0:02:59.2]} 3... a6 {[%clk 0:02:58.1]}
4. cxd5 {[%clk 0:02:53.7]} 4... exd5 {[%clk 0:02:57.4]} 5. Nf3 {[%clk
0:02:52.6]} 5... h6 {[%clk 0:02:54.5]} 6. Qb3 {[%clk 0:02:49.4]} 6... Nf6 {[%clk
0:02:43]} 7. e4 {[%clk 0:02:44.4]} 7... dxe4 {[%clk 0:01:44.4]} 8. Ne5 {[%clk
0:02:30.8]} 8... Qe7 {[%clk 0:00:56.9]} 9. Bc4 {[%clk 0:02:19.4]} 9... b5 {[%clk
0:00:45.8]} 10. Bxf7+ {[%clk 0:02:15.4]} 10... Kd8 {[%clk 0:00:46.1]} 11. Ng6
{[%clk 0:02:09.7]} 11... Qd7 {[%clk 0:00:36.5]} 12. Nxh8 {[%clk 0:02:05.2]}
12... Bb7 {[%clk 0:00:37.1]} 13. Be6 {[%clk 0:01:58.6]} 1-0

[Event "*** Titled Tuesday Blitz"]
[Site "Chess.com"]
[Date "2020.12.29"]
[Round "10"]
[White "Kildepiotr"]
[Black "stasiek18"]
[Result "0-1"]
[WhiteElo "2594"]
[BlackElo "2392"]
[TimeControl "180+1"]
[EndTime "11:52:04 PST"]
[Termination "stasiek18 won by resignation"]

1. Nf3 {[%clk 0:03:00.9]} 1... g6 {[%clk 0:02:58.4]} 2. g3 {[%clk 0:03:00.9]}
2... Bg7 {[%clk 0:02:59.3]} 3. d4 {[%clk 0:03:01.2]} 3... Nf6 {[%clk 0:02:58.5]}
4. Bg2 {[%clk 0:03:01.3]} 4... O-O {[%clk 0:02:59.4]} 5. O-O {[%clk 0:03:01.4]}
5... d5 {[%clk 0:03:00.3]} 6. c4 {[%clk 0:03:01.3]} 6... dxc4 {[%clk 0:03:01.2]}
7. Na3 {[%clk 0:03:01.3]} 7... Nc6 {[%clk 0:03:01.7]} 8. Nxc4 {[%clk 0:03:01.1]}
8... Be6 {[%clk 0:03:02.2]} 9. b3 {[%clk 0:03:01.3]} 9... Bd5 {[%clk 0:03:02.2]}
10. Bb2 {[%clk 0:02:59.7]} 10... a5 {[%clk 0:03:02.7]} 11. a4 {[%clk 0:02:54.3]}
11... Qb8 {[%clk 0:03:01.3]} 12. Nfe5 {[%clk 0:02:48.9]} 12... Bxg2 {[%clk
0:02:59.6]} 13. Kxg2 {[%clk 0:02:49.8]} 13... Nxe5 {[%clk 0:02:56]} 14. dxe5
{[%clk 0:02:49.3]} 14... Rd8 {[%clk 0:02:55.9]} 15. Qc2 {[%clk 0:02:43]} 15...
Nd5 {[%clk 0:02:54.6]} 16. Rad1 {[%clk 0:02:41]} 16... b5 {[%clk 0:02:46.5]} 17.
axb5 {[%clk 0:02:40.6]} 17... Qxb5 {[%clk 0:02:47.4]} 18. Rd3 {[%clk 0:02:33.9]}
18... Nb4 {[%clk 0:02:42.8]} 19. Rxd8+ {[%clk 0:02:33.4]} 19... Rxd8 {[%clk
0:02:43.6]} 20. Qc3 {[%clk 0:02:29.8]} 20... h5 {[%clk 0:01:39.1]} 21. Ra1
{[%clk 0:02:28.5]} 21... h4 {[%clk 0:01:21.4]} 22. Nxa5 {[%clk 0:02:13.7]} 22...
Qxe2 {[%clk 0:01:10.1]} 23. Re1 {[%clk 0:01:58.5]} 23... h3+ {[%clk 0:01:03.7]}
24. Kg1 {[%clk 0:01:54.3]} 24... Rd1 {[%clk 0:01:01.2]} 0-1

[Event "*** Titled Tuesday Blitz"]
[Site "Chess.com"]
[Date "2020.12.29"]
[Round "10"]
[White "esskeettit"]
[Black "elohunter1999"]
[Result "0-1"]
[WhiteElo "2471"]
[BlackElo "2673"]
[TimeControl "180+1"]
[EndTime "11:52:07 PST"]
[Termination "elohunter1999 won by resignation"]

1. d4 {[%clk 0:03:00.9]} 1... Nf6 {[%clk 0:02:59]} 2. c4 {[%clk 0:02:59.8]} 2...
e5 {[%clk 0:02:58.3]} 3. dxe5 {[%clk 0:02:55.1]} 3... Ng4 {[%clk 0:02:57.9]} 4.
Nf3 {[%clk 0:02:51.5]} 4... Bc5 {[%clk 0:02:56]} 5. e3 {[%clk 0:02:50.9]} 5...
Nc6 {[%clk 0:02:55.3]} 6. b3 {[%clk 0:02:38]} 6... O-O {[%clk 0:02:46.9]} 7. Bb2
{[%clk 0:02:37.2]} 7... Re8 {[%clk 0:02:43.8]} 8. Nbd2 {[%clk 0:02:36.8]} 8...
a5 {[%clk 0:02:35.8]} 9. Be2 {[%clk 0:02:35.8]} 9... Ngxe5 {[%clk 0:02:33.8]}
10. Nxe5 {[%clk 0:02:30.6]} 10... Nxe5 {[%clk 0:02:34.7]} 11. O-O {[%clk
0:02:30.7]} 11... Ra6 {[%clk 0:02:33.6]} 12. Nf3 {[%clk 0:02:28.5]} 12... Nxf3+
{[%clk 0:02:31.2]} 13. Bxf3 {[%clk 0:02:28.4]} 13... Rh6 {[%clk 0:02:30.8]} 14.
Qd5 {[%clk 0:02:12.6]} 14... d6 {[%clk 0:02:28.8]} 15. g3 {[%clk 0:01:56.6]}
15... c6 {[%clk 0:01:57.8]} 16. Qd3 {[%clk 0:01:51.2]} 16... Qg5 {[%clk
0:01:57.3]} 17. Rfe1 {[%clk 0:01:33.4]} 17... Bg4 {[%clk 0:01:51.4]} 18. e4
{[%clk 0:01:23.6]} 18... Qh5 {[%clk 0:01:41.8]} 19. Bg2 {[%clk 0:01:19.2]} 19...
Qxh2+ {[%clk 0:01:40.7]} 20. Kf1 {[%clk 0:01:19.5]} 20... Bh3 {[%clk 0:01:31.5]}
21. Qf3 {[%clk 0:01:19.5]} 21... Qh1+ {[%clk 0:01:30.2]} 22. Ke2 {[%clk
0:01:18.3]} 22... Qxg2 {[%clk 0:01:29.6]} 0-1

[Event "*** Titled Tuesday Blitz"]
[Site "Chess.com"]
[Date "2020.12.29"]
[Round "10"]
[White "MelihKaanCan"]
[Black "Ave_Mariia"]
[Result "1-0"]
[WhiteElo "2341"]
[BlackElo "2467"]
[TimeControl "180+1"]
[EndTime "11:52:36 PST"]
[Termination "MelihKaanCan won by resignation"]

1. e4 {[%clk 0:03:00.9]} 1... c5 {[%clk 0:02:59.7]} 2. Nf3 {[%clk 0:03:00.2]}
2... d6 {[%clk 0:03:00]} 3. d4 {[%clk 0:03:00.1]} 3... cxd4 {[%clk 0:03:00.9]}
4. Nxd4 {[%clk 0:03:01]} 4... Nf6 {[%clk 0:03:01.3]} 5. Nc3 {[%clk 0:03:01.6]}
5... g6 {[%clk 0:03:01.8]} 6. Be3 {[%clk 0:03:01.7]} 6... Bg7 {[%clk 0:03:02.2]}
7. f3 {[%clk 0:03:02.3]} 7... O-O {[%clk 0:03:02.3]} 8. Qd2 {[%clk 0:03:02.9]}
8... Nc6 {[%clk 0:03:03]} 9. Bc4 {[%clk 0:03:03.4]} 9... Bd7 {[%clk 0:03:02.2]}
10. h4 {[%clk 0:03:03.5]} 10... Ne5 {[%clk 0:03:01.4]} 11. Bb3 {[%clk
0:03:03.3]} 11... h5 {[%clk 0:03:01.8]} 12. O-O-O {[%clk 0:03:02.9]} 12... Rc8
{[%clk 0:03:01.8]} 13. Bg5 {[%clk 0:03:00.9]} 13... Nc4 {[%clk 0:02:44.8]} 14.
Qe2 {[%clk 0:03:00.5]} 14... b5 {[%clk 0:02:36.6]} 15. g4 {[%clk 0:02:28.8]}
15... hxg4 {[%clk 0:02:28.4]} 16. h5 {[%clk 0:02:06.4]} 16... Nh7 {[%clk
0:02:15.7]} 17. f4 {[%clk 0:01:03.4]} 17... Nxg5 {[%clk 0:02:09.2]} 18. fxg5
{[%clk 0:01:04.3]} 18... gxh5 {[%clk 0:01:55.4]} 19. Qh2 {[%clk 0:00:54.7]}
19... Be6 {[%clk 0:01:40.4]} 20. Qxh5 {[%clk 0:00:53.1]} 20... Re8 {[%clk
0:01:23.2]} 21. Qh7+ {[%clk 0:00:52.4]} 21... Kf8 {[%clk 0:01:23.5]} 22. Nxe6+
{[%clk 0:00:52.6]} 22... fxe6 {[%clk 0:01:24.4]} 23. Rdf1+ {[%clk 0:00:52.7]}
1-0

[Event "*** Titled Tuesday Blitz"]
[Site "Chess.com"]
[Date "2020.12.29"]
[Round "10"]
[White "Aemulus20"]
[Black "vladimirdamjanovic"]
[Result "0-1"]
[WhiteElo "2593"]
[BlackElo "2422"]
[TimeControl "180+1"]
[EndTime "11:52:42 PST"]
[Termination "vladimirdamjanovic won by resignation"]

1. e4 {[%clk 0:02:57.7]} 1... g6 {[%clk 0:02:55.9]} 2. d4 {[%clk 0:02:57.6]}
2... Bg7 {[%clk 0:02:56.5]} 3. Nc3 {[%clk 0:02:58.5]} 3... d5 {[%clk 0:02:57.1]}
4. exd5 {[%clk 0:02:57.2]} 4... Nf6 {[%clk 0:02:57.1]} 5. Bc4 {[%clk 0:02:56.2]}
5... Nbd7 {[%clk 0:02:57.8]} 6. Nge2 {[%clk 0:02:52.7]} 6... Nb6 {[%clk
0:02:58.3]} 7. Bb5+ {[%clk 0:02:52.5]} 7... Bd7 {[%clk 0:02:58.6]} 8. Bd3 {[%clk
0:02:32.6]} 8... Nbxd5 {[%clk 0:02:57.5]} 9. Nxd5 {[%clk 0:02:33.5]} 9... Nxd5
{[%clk 0:02:58]} 10. c3 {[%clk 0:02:32.5]} 10... O-O {[%clk 0:02:57]} 11. O-O
{[%clk 0:02:32.3]} 11... b6 {[%clk 0:02:51.4]} 12. Be4 {[%clk 0:02:28.2]} 12...
Bc6 {[%clk 0:02:49.5]} 13. Nf4 {[%clk 0:02:27.4]} 13... Nxc3 {[%clk 0:02:49.1]}
14. Bxc6 {[%clk 0:02:19]} 14... Nxd1 {[%clk 0:02:48.9]} 15. Rxd1 {[%clk
0:02:19.9]} 15... Rb8 {[%clk 0:02:12.7]} 16. Be3 {[%clk 0:02:09.3]} 16... Qd6
{[%clk 0:02:08.3]} 17. d5 {[%clk 0:01:59.2]} 17... Bh6 {[%clk 0:02:03.1]} 18. g3
{[%clk 0:01:58.1]} 18... e5 {[%clk 0:02:03.6]} 19. Ng2 {[%clk 0:01:49.9]} 19...
Bxe3 {[%clk 0:01:57.7]} 20. Nxe3 {[%clk 0:01:50.8]} 20... Rbd8 {[%clk
0:01:57.6]} 21. Nc4 {[%clk 0:01:48.9]} 21... Qe7 {[%clk 0:01:56]} 22. Re1 {[%clk
0:01:46.9]} 22... f6 {[%clk 0:01:55.7]} 23. a3 {[%clk 0:01:46.3]} 23... a5
{[%clk 0:01:54.4]} 24. Rab1 {[%clk 0:01:44.5]} 24... Qc5 {[%clk 0:01:40.2]} 25.
Rec1 {[%clk 0:01:40.2]} 25... Qd4 {[%clk 0:01:39.3]} 26. Ne3 {[%clk 0:01:31.2]}
26... f5 {[%clk 0:01:31.8]} 27. Rc4 {[%clk 0:01:28.5]} 27... Qd3 {[%clk
0:01:31.9]} 28. Rd1 {[%clk 0:01:18.2]} 28... Qe2 {[%clk 0:01:31.9]} 29. Rc2
{[%clk 0:01:02.4]} 29... Qh5 {[%clk 0:01:29.1]} 30. Nc4 {[%clk 0:00:59.8]} 30...
Qxd1+ {[%clk 0:01:28.7]} 0-1

[Event "*** Titled Tuesday Blitz"]
[Site "Chess.com"]
[Date "2020.12.29"]
[Round "10"]
[White "GM_LOADING"]
[Black "XDPS"]
[Result "0-1"]
[WhiteElo "2515"]
[BlackElo "2719"]
[TimeControl "180+1"]
[EndTime "11:52:50 PST"]
[Termination "XDPS won by resignation"]

1. d4 {[%clk 0:03:00.9]} 1... d5 {[%clk 0:02:59.8]} 2. c4 {[%clk 0:02:53.3]}
2... e6 {[%clk 0:02:59.9]} 3. Nc3 {[%clk 0:02:53.1]} 3... Nf6 {[%clk 0:03:00.2]}
4. cxd5 {[%clk 0:02:52.6]} 4... exd5 {[%clk 0:03:01.1]} 5. Bg5 {[%clk 0:02:53]}
5... c6 {[%clk 0:03:00.8]} 6. e3 {[%clk 0:02:53.2]} 6... Bd6 {[%clk 0:03:00.7]}
7. Bd3 {[%clk 0:02:52.6]} 7... h6 {[%clk 0:03:01]} 8. Bh4 {[%clk 0:02:52.2]}
8... O-O {[%clk 0:03:01.6]} 9. Nge2 {[%clk 0:02:52.3]} 9... Re8 {[%clk
0:03:02.1]} 10. Bg3 {[%clk 0:02:36.4]} 10... a5 {[%clk 0:03:01.8]} 11. O-O
{[%clk 0:02:35.2]} 11... Na6 {[%clk 0:03:01.9]} 12. Qd2 {[%clk 0:02:28.8]} 12...
Nc7 {[%clk 0:03:01.4]} 13. Rad1 {[%clk 0:02:29.2]} 13... Ne6 {[%clk 0:02:59.8]}
14. f3 {[%clk 0:02:27.9]} 14... b5 {[%clk 0:02:49.7]} 15. Rc1 {[%clk 0:02:19.3]}
15... Bb7 {[%clk 0:02:42]} 16. Nd1 {[%clk 0:02:10.7]} 16... b4 {[%clk
0:02:33.2]} 17. Nf2 {[%clk 0:02:05]} 17... c5 {[%clk 0:02:19.2]} 18. dxc5 {[%clk
0:01:58.7]} 18... Bxc5 {[%clk 0:02:17.6]} 19. Bf5 {[%clk 0:01:38.3]} 19... Qb6
{[%clk 0:02:16.1]} 20. Rxc5 {[%clk 0:01:11.1]} 20... Qxc5 {[%clk 0:02:11.4]} 21.
Rc1 {[%clk 0:01:07.9]} 21... Qb6 {[%clk 0:02:11.3]} 22. Bxe6 {[%clk 0:01:03.1]}
22... Qxe6 {[%clk 0:02:10.3]} 23. Nd4 {[%clk 0:01:03.9]} 23... Qxe3 {[%clk
0:02:09.7]} 24. Qxe3 {[%clk 0:01:04.1]} 24... Rxe3 {[%clk 0:02:09.7]} 25. Bf4
{[%clk 0:01:03]} 25... Ree8 {[%clk 0:02:07.8]} 26. g4 {[%clk 0:01:03.4]} 26...
Rac8 {[%clk 0:02:07.5]} 27. Rd1 {[%clk 0:01:02.6]} 27... Nh7 {[%clk 0:02:04.4]}
28. Nf5 {[%clk 0:01:01.9]} 28... Re2 {[%clk 0:01:50.4]} 29. Nd6 {[%clk
0:00:59.1]} 29... Rcc2 {[%clk 0:01:46.8]} 30. Bg3 {[%clk 0:00:56.9]} 30... Bc6
{[%clk 0:01:43.7]} 31. h4 {[%clk 0:00:56.5]} 31... Nf8 {[%clk 0:01:42.1]} 32.
Nf5 {[%clk 0:00:50.9]} 32... Ne6 {[%clk 0:01:39.1]} 0-1

[Event "*** Titled Tuesday Blitz"]
[Site "Chess.com"]
[Date "2020.12.29"]
[Round "10"]
[White "KhamzinOlzhas"]
[Black "Nemsko"]
[Result "1-0"]
[WhiteElo "2458"]
[BlackElo "2312"]
[TimeControl "180+1"]
[EndTime "11:52:58 PST"]
[Termination "KhamzinOlzhas won by resignation"]

1. d4 {[%clk 0:03:00.9]} 1... Nf6 {[%clk 0:02:59.2]} 2. c4 {[%clk 0:03:00.6]}
2... e6 {[%clk 0:02:59.3]} 3. e3 {[%clk 0:02:59.6]} 3... b6 {[%clk 0:02:56.8]}
4. Be2 {[%clk 0:02:59.4]} 4... Bb7 {[%clk 0:02:55.1]} 5. Bf3 {[%clk 0:02:59.9]}
5... d5 {[%clk 0:02:54.1]} 6. Ne2 {[%clk 0:02:58.9]} 6... Be7 {[%clk 0:02:44.7]}
7. O-O {[%clk 0:02:56.7]} 7... O-O {[%clk 0:02:44.3]} 8. Nbc3 {[%clk 0:02:52.1]}
8... c6 {[%clk 0:02:43.7]} 9. e4 {[%clk 0:02:42.4]} 9... dxe4 {[%clk 0:02:41.1]}
10. Nxe4 {[%clk 0:02:43.3]} 10... Nxe4 {[%clk 0:02:40.5]} 11. Bxe4 {[%clk
0:02:44.2]} 11... Nd7 {[%clk 0:02:40.8]} 12. Be3 {[%clk 0:02:32.6]} 12... Nf6
{[%clk 0:02:40.1]} 13. Bf3 {[%clk 0:02:29.4]} 13... Qc7 {[%clk 0:02:35.6]} 14.
Nc3 {[%clk 0:02:24.8]} 14... Rad8 {[%clk 0:02:30.7]} 15. Qa4 {[%clk 0:02:16.3]}
15... a6 {[%clk 0:02:24.4]} 16. Rfd1 {[%clk 0:02:06.9]} 16... Bd6 {[%clk
0:01:58.1]} 17. h3 {[%clk 0:02:04.4]} 17... e5 {[%clk 0:01:35]} 18. Qb3 {[%clk
0:01:54.9]} 18... c5 {[%clk 0:01:27.4]} 19. Bxb7 {[%clk 0:01:49.2]} 19... Qxb7
{[%clk 0:01:26.5]} 20. dxc5 {[%clk 0:01:43.7]} 20... Be7 {[%clk 0:01:18.3]} 21.
cxb6 {[%clk 0:01:40.7]} 21... Ne4 {[%clk 0:01:10.5]} 22. Nd5 {[%clk 0:01:35.7]}
22... Bc5 {[%clk 0:01:08.4]} 23. a4 {[%clk 0:01:31.8]} 23... Rd6 {[%clk
0:00:55.7]} 24. Bxc5 {[%clk 0:01:19.1]} 24... Nxc5 {[%clk 0:00:56.6]} 25. Qe3
{[%clk 0:01:18.3]} 25... Qc6 {[%clk 0:00:36.8]} 1-0

[Event "*** Titled Tuesday Blitz"]
[Site "Chess.com"]
[Date "2020.12.29"]
[Round "10"]
[White "beto-betun"]
[Black "zurzan"]
[Result "1-0"]
[WhiteElo "2189"]
[BlackElo "2058"]
[TimeControl "180+1"]
[EndTime "11:53:14 PST"]
[Termination "beto-betun won by checkmate"]

1. d4 {[%clk 0:03:00.9]} 1... d6 {[%clk 0:02:59.6]} 2. Nf3 {[%clk 0:03:00.3]}
2... Bg4 {[%clk 0:02:57.9]} 3. g3 {[%clk 0:02:59.8]} 3... f5 {[%clk 0:02:57]} 4.
Bg2 {[%clk 0:02:59.5]} 4... Nf6 {[%clk 0:02:56.9]} 5. O-O {[%clk 0:02:58]} 5...
Bxf3 {[%clk 0:02:56.4]} 6. Bxf3 {[%clk 0:02:57.5]} 6... g6 {[%clk 0:02:57.3]} 7.
Bxb7 {[%clk 0:02:54.4]} 7... Nbd7 {[%clk 0:02:57.2]} 8. Bxa8 {[%clk 0:02:53]}
8... Qxa8 {[%clk 0:02:57.1]} 9. f3 {[%clk 0:02:51.8]} 9... Bg7 {[%clk
0:02:54.8]} 10. c4 {[%clk 0:02:50.2]} 10... O-O {[%clk 0:02:54.2]} 11. Nc3
{[%clk 0:02:50.3]} 11... e5 {[%clk 0:02:52.1]} 12. d5 {[%clk 0:02:49.4]} 12...
a6 {[%clk 0:02:42.7]} 13. Be3 {[%clk 0:02:48.3]} 13... Qe8 {[%clk 0:02:37.5]}
14. Qd2 {[%clk 0:02:46.3]} 14... f4 {[%clk 0:02:17.4]} 15. gxf4 {[%clk
0:02:39.2]} 15... exf4 {[%clk 0:02:18.3]} 16. Bxf4 {[%clk 0:02:19.5]} 16... Ne5
{[%clk 0:02:10.2]} 17. Bxe5 {[%clk 0:02:14.1]} 17... Qxe5 {[%clk 0:02:08.7]} 18.
e3 {[%clk 0:02:12.3]} 18... Re8 {[%clk 0:01:59.7]} 19. Rae1 {[%clk 0:02:10.3]}
19... Nh5 {[%clk 0:01:57.1]} 20. Ne4 {[%clk 0:02:07]} 20... Rb8 {[%clk
0:01:43.8]} 21. b3 {[%clk 0:02:04.4]} 21... Rf8 {[%clk 0:01:34.4]} 22. Qg2
{[%clk 0:01:55.1]} 22... Nf6 {[%clk 0:01:30.9]} 23. Nxf6+ {[%clk 0:01:51.4]}
23... Rxf6 {[%clk 0:01:27.8]} 24. f4 {[%clk 0:01:47.8]} 24... Qh5 {[%clk
0:01:15.5]} 25. Qg5 {[%clk 0:01:41.1]} 25... Qh3 {[%clk 0:01:12.1]} 26. Qg3
{[%clk 0:01:37.9]} 26... Qh5 {[%clk 0:01:00.5]} 27. e4 {[%clk 0:01:37.4]} 27...
Rf8 {[%clk 0:00:54.2]} 28. e5 {[%clk 0:01:35.9]} 28... dxe5 {[%clk 0:00:49.9]}
29. fxe5 {[%clk 0:01:36.8]} 29... Rxf1+ {[%clk 0:00:49.7]} 30. Kxf1 {[%clk
0:01:35.4]} 30... Qf5+ {[%clk 0:00:49.2]} 31. Kg2 {[%clk 0:01:35]} 31... Qc2+
{[%clk 0:00:48.8]} 32. Qf2 {[%clk 0:01:28.5]} 32... Qd3 {[%clk 0:00:46.1]} 33.
e6 {[%clk 0:01:25.9]} 33... Bd4 {[%clk 0:00:36.6]} 34. Qf7+ {[%clk 0:01:24.1]}
34... Kh8 {[%clk 0:00:36.4]} 35. Qf8# {[%clk 0:01:24]} 1-0

[Event "*** Titled Tuesday Blitz"]
[Site "Chess.com"]
[Date "2020.12.29"]
[Round "10"]
[White "Training_Day"]
[Black "stephan97"]
[Result "1-0"]
[WhiteElo "2373"]
[BlackElo "2245"]
[TimeControl "180+1"]
[EndTime "11:53:15 PST"]
[Termination "Training_Day won by resignation"]

1. e4 {[%clk 0:03:00.9]} 1... c5 {[%clk 0:03:00]} 2. Nf3 {[%clk 0:02:57.5]} 2...
d6 {[%clk 0:03:00.3]} 3. d4 {[%clk 0:02:56.9]} 3... cxd4 {[%clk 0:03:00.9]} 4.
Nxd4 {[%clk 0:02:57.7]} 4... Nf6 {[%clk 0:03:01.4]} 5. f3 {[%clk 0:02:58.2]}
5... a6 {[%clk 0:03:00.1]} 6. c4 {[%clk 0:02:58.2]} 6... g6 {[%clk 0:02:54.1]}
7. Nc3 {[%clk 0:02:58.2]} 7... Bg7 {[%clk 0:02:54.3]} 8. Be3 {[%clk 0:02:58.7]}
8... O-O {[%clk 0:02:54.3]} 9. Qd2 {[%clk 0:02:57.5]} 9... Nbd7 {[%clk
0:02:45.6]} 10. Be2 {[%clk 0:02:55.7]} 10... Qc7 {[%clk 0:02:33.5]} 11. O-O
{[%clk 0:02:49.9]} 11... Rb8 {[%clk 0:02:30.2]} 12. Rfc1 {[%clk 0:02:47.4]}
12... Ne5 {[%clk 0:02:26.7]} 13. b3 {[%clk 0:02:43.7]} 13... Be6 {[%clk
0:02:23.6]} 14. Nd5 {[%clk 0:02:31.9]} 14... Bxd5 {[%clk 0:02:22.2]} 15. cxd5
{[%clk 0:02:31.9]} 15... Qd8 {[%clk 0:02:17.3]} 16. Rc2 {[%clk 0:02:18.5]} 16...
Rc8 {[%clk 0:02:12.5]} 17. Rac1 {[%clk 0:02:14.1]} 17... Qd7 {[%clk 0:02:03.7]}
18. h3 {[%clk 0:02:09.9]} 18... Rxc2 {[%clk 0:01:48.8]} 19. Qxc2 {[%clk
0:02:08.1]} 19... Qd8 {[%clk 0:01:42.6]} 20. Qc7 {[%clk 0:01:59.8]} 20... b5
{[%clk 0:01:27.8]} 21. Qb7 {[%clk 0:01:51]} 21... Qa5 {[%clk 0:01:22.4]} 22.
Qxe7 {[%clk 0:01:25.1]} 22... Qxa2 {[%clk 0:01:22]} 23. Qxd6 {[%clk 0:01:22.9]}
23... Re8 {[%clk 0:00:54.6]} 24. Bf1 {[%clk 0:01:16.9]} 24... Bf8 {[%clk
0:00:47.8]} 25. Qxf6 {[%clk 0:01:11.7]} 1-0